bitfinex/quotes_SOLUSD_20251119
["timestamp","ask_amount","ask_price","bid_price","bid_amount"]
[1763531915744,18.12096,138.18,138.15,150.67]
[1763531915929,13.73038737,138.17,138.15,150.67]
[1763531916131,4.36,138.16,138.15,150.67]
[1763531916429,4.36,138.16,138.15,150.0]
[1763531916742,4.36,138.16,138.15,150.67]
[1763531916944,0.57,138.24,138.15,160.04038737]
[1763531917142,9.37038737,138.22,138.17,9.37038737]
[1763531917444,9.37038737,138.22,138.16,0.67]
[1763531917445,9.78882769,138.27,138.18,9.37038737]
[1763531917626,9.37038737,138.24,138.19,9.37038737]
[1763531917826,4.36,138.23,138.2,0.67]
[1763531918945,9.37038737,138.25,138.2,10.04038737]
[1763531919122,4.36,138.24,138.2,10.04038737]
[1763531919323,4.36,138.24,138.21,0.67]
[1763531919920,0.1,138.29,138.22,9.37038737]
[1763531920146,4.36,138.28,138.22,9.37038737]
[1763531920326,13.73038737,138.28,138.23,10.04038737]
[1763531920841,13.73038737,138.28,138.22,4.36]
[1763531920842,0.1,138.29,138.24,10.04038737]
[1763531921142,4.36,138.28,138.25,0.67]
[1763531921326,4.36,138.28,138.23,0.67]
[1763531921530,9.37038737,138.27,138.24,0.67]
[1763531921717,4.36,138.28,138.24,0.67]
[1763531922128,13.73038737,138.28,138.24,0.67]
[1763531922542,4.36,138.28,138.24,0.67]
[1763531922744,9.37038737,138.27,138.24,0.67]
[1763531922946,9.37038737,138.25,138.24,0.69]
[1763531923246,9.37038737,138.26,138.24,0.69]
[1763531924053,13.73038737,138.25,138.21,0.69]
[1763531924351,9.37038737,138.22,138.19,0.69]
[1763531924528,9.37038737,138.22,138.2,0.69]
[1763531924529,4.36,138.22,138.2,0.69]
[1763531925324,9.37038737,138.23,138.2,0.69]
[1763531925325,9.37038737,138.25,138.2,0.69]
[1763531925550,9.37038737,138.25,138.2,10.06038737]
[1763531925551,4.36,138.24,138.2,10.06038737]
[1763531926052,4.36,138.24,138.21,0.69]
[1763531926239,13.73038737,138.25,138.21,0.69]
[1763531926922,9.37038737,138.25,138.21,0.69]
[1763531927124,13.73038737,138.25,138.21,0.69]
[1763531927428,4.36,138.25,138.21,0.69]
[1763531927736,13.73038737,138.25,138.21,0.69]
[1763531928052,0.1,138.29,138.25,9.78882769]
[1763531928231,4.36,138.33,138.28,9.37038737]
[1763531928424,13.73038737,138.35,138.3,9.37038737]
[1763531928624,4.36,138.35,138.29,9.37038737]
[1763531928848,9.37038737,138.34,138.3,0.69]
[1763531929349,4.36,138.35,138.3,0.69]
[1763531929350,9.37038737,138.33,138.3,0.69]
[1763531929822,9.37038737,138.31,138.27,0.69]
[1763531930025,9.37038737,138.29,138.27,0.69]
[1763531930430,4.36,138.31,138.27,0.69]
[1763531930753,13.73038737,138.31,138.27,0.69]
[1763531931527,9.37038737,138.29,138.27,0.69]
[1763531931744,9.37038737,138.28,138.24,0.69]
[1763531932058,9.78882769,138.31,138.24,0.69]
[1763531932059,0.67,138.31,138.24,0.69]
[1763531932221,4.36,138.3,138.24,0.69]
[1763531932421,22.48096,138.3,138.24,10.06038737]
[1763531932643,13.73038737,138.29,138.24,10.06038737]
[1763531932837,13.73038737,138.29,138.25,0.69]
[1763531933226,4.36,138.29,138.25,0.69]
[1763531933429,13.73038737,138.29,138.25,0.69]
[1763531933667,4.36,138.29,138.25,0.69]
[1763531933860,9.37038737,138.29,138.25,0.69]
[1763531934031,13.73038737,138.29,138.25,0.69]
[1763531934530,9.37038737,138.29,138.25,0.69]
[1763531935133,9.37038737,138.31,138.26,9.37038737]
[1763531935528,9.37038737,138.31,138.27,0.69]
[1763531935773,9.37038737,138.3,138.27,0.69]
[1763531935939,9.37038737,138.3,138.25,10.06038737]
[1763531936134,9.37038737,138.3,138.23,4.36]
[1763531936135,9.37038737,138.29,138.26,0.69]
[1763531936959,5.59893588,138.29,138.26,0.69]
[1763531937461,22.48096,138.3,138.26,0.69]
[1763531937669,18.12096,138.3,138.26,0.69]
[1763531937847,18.12096,138.3,138.26,6.28893588]
[1763531938340,23.71989588,138.3,138.27,0.69]
[1763531939158,18.12096,138.3,138.27,0.69]
[1763531939837,28.07989588,138.31,138.27,0.69]
[1763531940036,23.71989588,138.3,138.27,0.69]
[1763531940644,18.12096,138.3,138.27,0.69]
[1763531940863,23.71989588,138.3,138.27,0.69]
[1763531942249,5.59893588,138.29,138.27,0.69]
[1763531942558,4.36,138.3,138.27,0.69]
[1763531942762,22.48096,138.3,138.27,0.69]
[1763531942962,24.63046961,138.3,138.27,0.69]
[1763531943356,22.48096,138.3,138.27,0.69]
[1763531943673,6.50950961,138.3,138.27,0.69]
[1763531943972,4.36,138.3,138.27,0.69]
[1763531944771,6.50950961,138.3,138.27,0.69]
[1763531945676,4.36,138.3,138.27,0.69]
[1763531945844,2.14950961,138.3,138.27,0.69]
[1763531946044,4.36,138.3,138.27,0.69]
[1763531946575,2.14950961,138.31,138.27,0.69]
[1763531946745,2.14950961,138.29,138.27,0.69]
[1763531946944,2.14950961,138.29,138.24,0.69]
[1763531947146,2.14950961,138.28,138.25,0.69]
[1763531947345,18.12096,138.3,138.26,2.14950961]
[1763531947670,18.12096,138.3,138.27,0.69]
[1763531947873,2.14950961,138.3,138.27,0.69]
[1763531948058,2.14950961,138.3,138.23,0.69]
[1763531948059,20.27046961,138.28,138.23,0.69]
[1763531948251,2.14950961,138.26,138.23,0.69]
[1763531948653,6.50950961,138.27,138.23,0.69]
[1763531949372,4.36,138.27,138.23,0.69]
[1763531949968,4.36,138.27,138.23,2.83950961]
[1763531950269,6.50950961,138.27,138.23,0.69]
[1763531950459,6.50950961,138.27,138.24,0.69]
[1763531951975,0.67,138.33,138.26,2.14950961]
[1763531952164,2.14950961,138.31,138.27,0.69]
[1763531952865,34.4192973,138.32,138.27,0.69]
[1763531953067,35.0892973,138.32,138.27,0.69]
[1763531953857,18.12096,138.29,138.25,2.14950961]
[1763531954055,4.36,138.3,138.27,0.71]
[1763531955259,2.14950961,138.32,138.27,0.71]
[1763531955451,133.52680448,138.45,138.27,0.71]
[1763531955452,0.67,138.35,138.28,2.14950961]
[1763531955668,2.14950961,138.35,138.29,2.14950961]
[1763531955877,4.46,138.37,138.32,2.14950961]
[1763531956177,4.46,138.37,138.33,2.14950961]
[1763531956356,0.1,138.37,138.34,0.71]
[1763531956677,6.60950961,138.37,138.34,0.71]
[1763531956852,4.46,138.37,138.34,0.71]
[1763531957354,0.1,138.37,138.34,0.71]
[1763531957549,0.1,138.37,138.34,2.85950961]
[1763531957851,0.1,138.37,138.34,0.71]
[1763531958584,0.1,138.37,138.34,2.85950961]
[1763531958764,0.1,138.37,138.34,0.71]
[1763531959077,2.24950961,138.37,138.34,0.71]
[1763531959281,0.1,138.37,138.34,0.71]
[1763531960267,0.1,138.37,138.34,2.85950961]
[1763531960674,0.1,138.37,138.35,0.71]
[1763531961159,0.1,138.37,138.35,2.85950961]
[1763531961361,0.1,138.39,138.36,2.14950961]
[1763531961579,0.1,138.39,138.38,2.14950961]
[1763531961964,0.1,138.39,138.38,0.71]
[1763531962185,0.1,138.39,138.38,2.85950961]
[1763531962372,0.1,138.39,138.38,0.71]
[1763531962774,2.24950961,138.39,138.35,0.69]
[1763531963777,0.1,138.39,138.35,2.83950961]
[1763531963968,0.1,138.39,138.35,0.69]
[1763531964185,2.24950961,138.39,138.36,0.69]
[1763531964389,0.1,138.39,138.36,2.83950961]
[1763531964778,0.1,138.39,138.37,0.69]
[1763531965876,5.68937149,138.39,138.35,0.69]
[1763531966206,0.1,138.39,138.36,0.69]
[1763531967774,5.68937149,138.39,138.34,0.69]
[1763531967969,5.68937149,138.39,138.34,6.27937149]
[1763531968394,5.58937149,138.35,138.31,0.69]
[1763531968570,4.36,138.37,138.31,0.69]
[1763531968777,5.58937149,138.36,138.31,6.27937149]
[1763531969166,5.58937149,138.36,138.32,0.69]
[1763531969379,5.58937149,138.35,138.32,0.69]
[1763531969981,23.71033149,138.36,138.32,0.69]
[1763531970174,18.12096,138.36,138.32,0.69]
[1763531970380,23.71033149,138.36,138.32,0.69]
[1763531972288,5.01,138.38,138.32,6.27937149]
[1763531972289,5.58937149,138.37,138.32,6.27937149]
[1763531972481,0.65,138.38,138.32,6.27937149]
[1763531972690,5.58937149,138.37,138.33,0.69]
[1763531974395,5.58937149,138.35,138.31,0.69]
[1763531974575,0.65,138.37,138.31,5.58937149]
[1763531974576,5.58937149,138.36,138.31,5.58937149]
[1763531974779,0.65,138.37,138.32,0.69]
[1763531974983,5.58937149,138.36,138.28,44.29454784]
[1763531975180,5.58937149,138.36,138.32,0.69]
[1763531976374,6.00319333,138.46,138.32,0.69]
[1763531976577,5.58937149,138.36,138.32,0.69]
[1763531978404,9.78882769,138.37,138.32,0.69]
[1763531978608,5.58937149,138.36,138.32,0.69]
[1763531978811,9.78882769,138.37,138.32,0.69]
[1763531979005,5.58937149,138.36,138.32,0.69]
[1763531979696,5.58937149,138.35,138.3,6.27937149]
[1763531980006,5.58937149,138.35,138.3,5.58937149]
[1763531980207,5.58937149,138.35,138.31,0.69]
[1763531980590,9.78882769,138.37,138.31,0.69]
[1763531980890,5.58937149,138.36,138.31,6.27937149]
[1763531981300,5.58937149,138.36,138.32,0.69]
[1763531981894,5.58937149,138.35,138.32,0.69]
[1763531982914,5.58937149,138.35,138.32,0.67]
[1763531983209,5.58937149,138.36,138.32,0.67]
[1763531983712,15.37819918,138.37,138.32,6.25937149]
[1763531983905,15.37819918,138.37,138.32,0.67]
[1763531984113,5.58937149,138.36,138.32,0.67]
[1763531984804,2.14808933,138.36,138.32,0.67]
[1763531985792,0.12,138.39,138.32,0.67]
[1763531986003,2.14808933,138.36,138.32,0.67]
[1763531986203,2.14808933,138.36,138.32,2.81808933]
[1763531986619,2.14808933,138.37,138.33,0.67]
[1763531987199,8.59235732,138.48,138.45,115.46212298]
[1763531987395,2.14808933,138.46,138.33,0.67]
[1763531987607,2.14808933,138.37,138.33,0.67]
[1763531991324,2.14808933,138.36,138.32,0.67]
[1763531991619,2.14808933,138.36,138.31,20.26904933]
[1763531991620,2.14808933,138.34,138.31,0.67]
[1763531992035,9.78882769,138.38,138.32,2.14808933]
[1763531992201,2.14808933,138.37,138.32,2.14808933]
[1763531992401,2.14808933,138.37,138.32,2.81808933]
[1763531992802,9.78882769,138.38,138.32,0.67]
[1763531993017,2.14808933,138.36,138.32,0.67]
[1763531993231,2.14808933,138.37,138.32,2.81808933]
[1763531993433,9.78882769,138.38,138.32,2.81808933]
[1763531993623,2.14808933,138.37,138.32,2.81808933]
[1763531994011,2.14808933,138.36,138.32,0.67]
[1763531994218,9.78882769,138.38,138.32,0.67]
[1763531994520,2.14808933,138.37,138.32,0.67]
[1763531994715,2.14808933,138.37,138.32,2.81808933]
[1763531995116,9.78882769,138.38,138.33,0.67]
[1763531995509,2.14808933,138.37,138.33,0.67]
[1763531996234,18.12096,138.39,138.33,2.81808933]
[1763531996410,2.14808933,138.38,138.33,0.67]
[1763531996613,9.78882769,138.41,138.36,2.14808933]
[1763531996905,18.12096,138.39,138.35,2.14808933]
[1763531997406,20.26904933,138.39,138.36,0.67]
[1763531998427,2.14808933,138.4,138.36,0.67]
[1763531998924,3.35461962,138.4,138.36,0.67]
[1763531999526,32.24978769,138.42,138.36,4.02461962]
[1763531999527,3.35461962,138.41,138.36,4.02461962]
[1763531999906,3.35461962,138.41,138.37,0.7]
[1763532000110,9.78882769,138.42,138.37,0.7]
[1763532000620,3.35461962,138.48,138.37,5.04]
[1763532000621,3.35461962,138.43,138.37,5.04]
[1763532000823,3.35461962,138.42,138.38,0.7]
[1763532001132,3.35461962,138.39,138.37,4.34]
[1763532001308,3.35461962,138.39,138.36,0.7]
[1763532001917,14.12882769,138.43,138.35,150.0]
[1763532002116,9.78882769,138.44,138.36,4.05461962]
[1763532002335,3.35461962,138.4,138.37,0.7]
[1763532002838,9.78882769,138.42,138.37,0.7]
[1763532003132,3.35461962,138.4,138.37,0.7]
[1763532004249,3.35461962,138.41,138.37,0.7]
[1763532004735,3.35461962,138.41,138.35,150.0]
[1763532004736,3.35461962,138.38,138.35,150.0]
[1763532004938,3.35461962,138.36,138.35,150.0]
[1763532006532,13.14344731,138.36,138.35,150.0]
[1763532006732,17.48344731,138.36,138.35,150.0]
[1763532007829,13.14344731,138.36,138.35,150.0]
[1763532008034,17.48344731,138.36,138.35,150.0]
[1763532008564,17.48344731,138.36,138.35,98.53800788]
[1763532009547,20.83806693,138.36,138.35,39.80421253]
[1763532009743,17.48344731,138.36,138.35,39.80421253]
[1763532010125,22.83806691,138.36,138.35,39.80421253]
[1763532010343,22.83806691,138.36,138.24,5.04]
[1763532010344,27.90978769,138.32,138.24,5.04]
[1763532010525,27.90978769,138.3,138.25,0.7]
[1763532010843,3.35461962,138.26,138.25,0.7]
[1763532011347,4.34,138.28,138.25,0.7]
[1763532011540,3.35461962,138.27,138.25,0.7]
[1763532012431,18.12096,138.22,138.21,0.2]
[1763532012640,25.81557962,138.22,138.21,0.2]
[1763532012841,21.47557962,138.22,138.21,0.2]
[1763532013739,4.43632386,138.27,138.21,0.9]
[1763532014046,3.35461962,138.22,138.21,0.2]
[1763532014252,18.12096,138.23,138.21,0.2]
[1763532014429,3.35461962,138.22,138.21,0.2]
[1763532016073,21.47557962,138.22,138.21,0.2]
[1763532017148,11.78882767,138.29,138.25,124.18442038]
[1763532017349,6.70923924,138.26,138.25,72.72242826]
[1763532018442,6.70923924,138.26,138.25,21.26043614]
[1763532018642,20.85806693,138.26,138.25,21.26043614]
[1763532018847,20.85806693,138.26,138.25,13.98863291]
[1763532019564,18.12096,138.23,138.21,0.2]
[1763532019763,21.47557962,138.22,138.21,0.2]
[1763532020262,4.36,138.24,138.21,0.9]
[1763532020263,3.35461962,138.23,138.21,0.9]
[1763532020479,3.35461962,138.22,138.21,0.2]
[1763532020763,3.35461962,138.22,138.21,0.9]
[1763532020961,13.14344731,138.22,138.21,0.2]
[1763532021142,21.47557962,138.22,138.21,0.9]
[1763532021337,21.47557962,138.22,138.21,0.2]
[1763532021544,31.26440731,138.22,138.21,0.2]
[1763532022541,21.47557962,138.22,138.21,0.2]
[1763532022735,31.26440731,138.22,138.21,0.2]
[1763532022966,21.47557962,138.22,138.21,0.2]
[1763532023174,57.71461962,138.33,138.21,0.2]
[1763532023175,9.78882769,138.29,138.21,0.91]
[1763532023379,9.78882769,138.29,138.22,0.71]
[1763532023380,3.35461962,138.26,138.22,0.71]
[1763532023875,18.12096,138.25,138.22,0.71]
[1763532024040,3.35461962,138.26,138.22,0.71]
[1763532025064,3.35461962,138.32,138.22,0.71]
[1763532025372,21.47557962,138.27,138.22,4.06461962]
[1763532025555,4.36,138.29,138.23,3.35461962]
[1763532025761,4.36,138.29,138.24,0.71]
[1763532026068,3.35461962,138.28,138.24,0.71]
[1763532027483,3.35461962,138.27,138.24,0.71]
[1763532028647,3.35461962,138.28,138.24,0.71]
[1763532028857,5.18790418,138.4,138.26,3.35461962]
[1763532029073,3.35461962,138.32,138.27,3.35461962]
[1763532029280,21.47557962,138.31,138.26,3.35461962]
[1763532029459,3.35461962,138.31,138.26,3.35461962]
[1763532029665,3.35461962,138.32,138.27,0.71]
[1763532030055,6.27168041,138.39,138.27,0.71]
[1763532030286,3.35461962,138.33,138.28,3.35461962]
[1763532030583,3.35461962,138.33,138.29,0.71]
[1763532030779,18.12096,138.32,138.29,0.71]
[1763532031270,21.47557962,138.32,138.29,0.71]
[1763532031754,18.12096,138.32,138.29,0.71]
[1763532031954,21.47557962,138.32,138.29,0.71]
[1763532032461,18.12096,138.32,138.29,0.71]
[1763532032787,4.43839585,138.39,138.29,0.71]
[1763532032788,104.3,138.45,138.31,3.35461962]
[1763532032957,3.35461962,138.39,138.33,3.35461962]
[1763532033354,3.35461962,138.38,138.34,0.71]
[1763532033582,3.35461962,138.37,138.34,0.71]
[1763532033962,18.12096,138.38,138.34,0.71]
[1763532034174,3.35461962,138.37,138.34,0.71]
[1763532034861,9.35132378,138.35,138.34,0.71]
[1763532035486,27.47228378,138.35,138.3,4.36]
[1763532035675,27.47228378,138.35,138.26,13.69132378]
[1763532035676,9.35132378,138.31,138.26,13.69132378]
[1763532035864,9.35132378,138.31,138.28,0.71]
[1763532036177,22.46096,138.34,138.28,10.06132378]
[1763532036364,9.35132378,138.32,138.29,0.71]
[1763532036760,9.35132378,138.3,138.27,0.71]
[1763532038382,9.78882769,138.33,138.27,0.71]
[1763532038685,9.35132378,138.3,138.27,0.71]
[1763532039386,18.12096,138.32,138.27,0.71]
[1763532039581,9.35132378,138.31,138.27,0.71]
[1763532039976,27.47228378,138.32,138.27,0.71]
[1763532041079,9.78882769,138.37,138.35,108.39888853]
[1763532041278,13.69132378,138.36,138.35,108.39888853]
[1763532043176,23.48015147,138.36,138.35,108.39888853]
[1763532044095,9.35132378,138.36,138.35,108.39888853]
[1763532044400,9.35132378,138.36,138.35,109.08888853]
[1763532044604,9.35132378,138.36,138.35,108.39888853]
[1763532044769,27.47228378,138.36,138.35,108.39888853]
[1763532045664,9.78882769,138.41,138.35,108.39888853]
[1763532045869,9.35132378,138.37,138.35,109.08888853]
[1763532046065,27.47228378,138.37,138.35,109.08888853]
[1763532046496,9.35132378,138.37,138.35,108.39888853]
[1763532046675,9.35132378,138.37,138.35,109.08888853]
[1763532046871,9.35132378,138.37,138.36,0.69]
[1763532047089,9.35132378,138.37,138.35,109.08888853]
[1763532047496,9.35132378,138.37,138.35,108.39888853]
[1763532047704,9.35132378,138.37,138.36,0.69]
[1763532048383,27.47228378,138.38,138.36,0.69]
[1763532049599,9.35132378,138.38,138.36,0.69]
[1763532049981,27.47228378,138.38,138.36,0.69]
[1763532051803,18.12096,138.38,138.36,0.69]
[1763532051989,27.47228378,138.38,138.36,0.69]
[1763532053099,9.35132378,138.39,138.36,0.69]
[1763532053303,18.12096,138.41,138.36,5.03]
[1763532053612,27.47228378,138.41,138.36,14.38132378]
[1763532053798,27.47228378,138.41,138.37,0.69]
[1763532054230,4.34,138.42,138.37,0.69]
[1763532054231,9.35132378,138.42,138.37,0.69]
[1763532054444,9.35132378,138.43,138.38,9.35132378]
[1763532054726,9.35132378,138.46,138.4,9.35132378]
[1763532055036,18.12096,138.45,138.41,0.69]
[1763532055202,21.47307935,138.45,138.42,4.34]
[1763532055728,3.35211935,138.44,138.43,0.69]
[1763532056105,3.35211935,138.45,138.43,0.69]
[1763532056439,9.78882769,138.49,138.43,0.69]
[1763532056440,0.1,138.5,138.43,0.69]
[1763532056721,18.22096,138.47,138.43,0.69]
[1763532056917,0.1,138.47,138.43,0.69]
[1763532057097,3.45211935,138.47,138.43,0.69]
[1763532058421,3.35211935,138.45,138.43,0.69]
[1763532058724,3.35211935,138.46,138.43,0.69]
[1763532058919,2.14526297,138.46,138.43,0.69]
[1763532059624,2.14526297,138.45,138.43,0.69]
[1763532060526,2.14526297,138.44,138.43,0.69]
[1763532060728,2.14526297,138.44,138.39,2.14526297]
[1763532060729,2.14526297,138.44,138.39,0.69]
[1763532061022,4.34,138.46,138.39,0.69]
[1763532061023,2.14526297,138.41,138.39,0.69]
[1763532061422,18.12096,138.43,138.36,0.69]
[1763532061423,2.14526297,138.4,138.36,0.69]
[1763532061611,22.46096,138.43,138.36,0.69]
[1763532061612,2.14526297,138.37,138.36,0.69]
[1763532062010,2.14526297,138.37,138.35,108.39888853]
[1763532062529,2.14526297,138.36,138.35,108.39888853]
[1763532062903,5.59483415,138.36,138.35,108.39888853]
[1763532064129,18.12096,138.42,138.35,109.08888853]
[1763532064306,5.59483415,138.36,138.35,108.39888853]
[1763532065202,18.12096,138.38,138.35,108.39888853]
[1763532065529,23.71579415,138.36,138.35,108.39888853]
[1763532068220,28.05579415,138.36,138.35,108.39888853]
[1763532068547,37.84462184,138.36,138.35,108.39888853]
[1763532069124,19.72366184,138.36,138.35,108.39888853]
[1763532070102,23.71579415,138.36,138.35,109.08888853]
[1763532070302,5.59483415,138.36,138.35,109.08888853]
[1763532070529,5.59483415,138.36,138.35,108.39888853]
[1763532070705,23.71579415,138.36,138.35,108.39888853]
[1763532072206,23.71579415,138.36,138.35,109.08888853]
[1763532072207,18.12096,138.36,138.35,109.08888853]
[1763532072409,23.71579415,138.36,138.35,108.39888853]
[1763532074431,7.99220562,138.51,138.35,108.39888853]
[1763532074432,5.59483415,138.38,138.35,109.06888853]
[1763532074612,22.46096,138.41,138.36,0.67]
[1763532074813,5.59483415,138.38,138.36,0.67]
[1763532075116,5.59483415,138.41,138.36,10.60483415]
[1763532075315,23.71579415,138.42,138.37,5.59483415]
[1763532075514,5.59483415,138.42,138.37,6.26483415]
[1763532075721,23.71579415,138.42,138.38,0.67]
[1763532075920,5.59483415,138.43,138.39,4.34]
[1763532076116,5.59483415,138.44,138.39,9.93483415]
[1763532076321,23.71579415,138.44,138.4,0.67]
[1763532076534,4.44,138.47,138.4,0.67]
[1763532076535,0.1,138.47,138.4,0.67]
[1763532076712,5.59483415,138.42,138.4,0.67]
[1763532077221,9.78882769,138.46,138.4,0.67]
[1763532077550,5.59483415,138.41,138.4,0.67]
[1763532077836,5.59483415,138.42,138.4,0.67]
[1763532078411,5.59483415,138.41,138.4,0.67]
[1763532079134,5.59483415,138.42,138.4,0.67]
[1763532079633,23.71579415,138.43,138.4,0.67]
[1763532079820,5.59483415,138.42,138.39,4.34]
[1763532080011,5.59483415,138.41,138.39,4.34]
[1763532080210,5.59483415,138.41,138.4,0.67]
[1763532080413,5.59483415,138.41,138.37,5.01]
[1763532080610,5.59483415,138.39,138.37,5.01]
[1763532080813,5.59483415,138.38,138.37,0.67]
[1763532081013,5.59483415,138.38,138.35,112.73888853]
[1763532081630,14.12882769,138.42,138.36,0.67]
[1763532081631,5.59483415,138.4,138.36,0.67]
[1763532081812,5.59483415,138.38,138.36,0.67]
[1763532082142,5.59483415,138.39,138.36,0.67]
[1763532082432,5.59483415,138.4,138.36,0.67]
[1763532082607,5.59483415,138.39,138.36,0.67]
[1763532083339,9.78882769,138.42,138.36,0.67]
[1763532083513,5.59483415,138.4,138.36,0.67]
[1763532084342,5.59483415,138.39,138.36,0.67]
[1763532084719,9.78882769,138.42,138.36,0.67]
[1763532084917,5.59483415,138.38,138.36,0.67]
[1763532085664,5.59483415,138.4,138.36,0.67]
[1763532088332,5.59483415,138.39,138.36,0.67]
[1763532088943,2.14734536,138.39,138.36,0.67]
[1763532089314,2.14734536,138.4,138.36,0.67]
[1763532089530,9.78882769,138.42,138.36,0.67]
[1763532089928,2.14734536,138.4,138.36,0.67]
[1763532090132,2.14734536,138.39,138.36,0.67]
[1763532090735,2.14734536,138.38,138.36,0.67]
[1763532091046,2.14734536,138.37,138.35,113.43888853]
[1763532091341,9.78882769,138.39,138.35,113.43888853]
[1763532091342,2.14734536,138.36,138.35,113.43888853]
[1763532091549,9.78882769,138.39,138.35,113.43888853]
[1763532091845,2.14734536,138.36,138.35,113.43888853]
[1763532093127,11.93617305,138.36,138.35,108.39888853]
[1763532097865,11.93617305,138.36,138.35,78.37939313]
[1763532098847,11.93617305,138.36,138.35,48.35989773]
[1763532099250,16.27617305,138.36,138.35,48.35989773]
[1763532099759,11.93617305,138.36,138.35,48.35989773]
[1763532099937,34.39713305,138.36,138.35,48.35989773]
[1763532100853,37.84622883,138.36,138.35,48.35989773]
[1763532101356,27.90978769,138.36,138.35,48.35989773]
[1763532101533,33.50622883,138.36,138.35,48.35989773]
[1763532102350,15.38526883,138.36,138.35,48.35989773]
[1763532102863,15.38526883,138.36,138.35,49.02989773]
[1763532103472,104.3,138.46,138.35,49.02989773]
[1763532103769,9.78882769,138.39,138.36,0.67]
[1763532104053,5.59644114,138.38,138.36,0.67]
[1763532104534,15.38526883,138.39,138.36,0.67]
[1763532105056,15.38526883,138.39,138.36,5.01]
[1763532105258,5.59644114,138.39,138.36,5.01]
[1763532105446,5.59644114,138.38,138.37,0.67]
[1763532106668,5.59644114,138.4,138.37,0.67]
[1763532106848,5.59644114,138.41,138.38,4.34]
[1763532107262,5.59644114,138.41,138.39,0.67]
[1763532107748,15.38526883,138.42,138.39,0.67]
[1763532107946,9.78882769,138.42,138.39,0.67]
[1763532108168,5.59644114,138.43,138.39,0.67]
[1763532108557,9.78882769,138.44,138.39,6.26644114]
[1763532108754,5.59644114,138.42,138.39,0.67]
[1763532108967,5.59644114,138.41,138.4,0.67]
[1763532110853,9.78882769,138.45,138.4,0.67]
[1763532111054,5.59644114,138.41,138.4,0.67]
[1763532112178,5.59644114,138.42,138.4,0.67]
[1763532113570,5.59644114,138.44,138.4,0.67]
[1763532113879,18.22096,138.47,138.4,0.67]
[1763532113880,5.59644114,138.45,138.41,4.34]
[1763532114179,9.78882769,138.46,138.41,4.34]
[1763532114381,0.1,138.47,138.42,6.26644114]
[1763532114553,0.1,138.47,138.43,6.26644114]
[1763532114758,0.1,138.47,138.44,4.34]
[1763532114954,0.1,138.47,138.45,0.67]
[1763532116251,18.22096,138.5,138.46,5.59644114]
[1763532116252,0.1,138.5,138.46,5.59644114]
[1763532116558,0.1,138.5,138.47,9.93644114]
[1763532116778,0.1,138.5,138.48,0.67]
[1763532117483,18.12096,138.49,138.48,0.67]
[1763532117980,18.12096,138.49,138.47,4.34]
[1763532117981,23.71740114,138.49,138.47,4.34]
[1763532118167,5.59644114,138.48,138.47,5.01]
[1763532118363,18.22096,138.5,138.48,0.67]
[1763532118580,5.59644114,138.49,138.48,0.67]
[1763532119085,5.59644114,138.49,138.47,4.34]
[1763532119269,5.59644114,138.49,138.48,0.67]
[1763532119694,5.59644114,138.49,138.47,4.34]
[1763532119857,18.22096,138.5,138.47,4.34]
[1763532120059,23.81740114,138.5,138.47,5.01]
[1763532120360,18.22096,138.5,138.48,0.67]
[1763532120581,18.12096,138.49,138.48,0.67]
[1763532121370,18.22096,138.5,138.47,4.34]
[1763532121568,9.33015376,138.49,138.48,0.67]
[1763532121969,9.33015376,138.49,138.47,4.34]
[1763532122385,9.33015376,138.49,138.47,5.01]
[1763532122584,9.33015376,138.49,138.48,0.67]